[Event "Titled Tuesday Blitz February 07 Late 2023"]
[White "Dubov, Daniil"]
[Black "Melkumyan, Hrant"]
[WhiteFideId "24126055"]
[BlackFideId "13302485"]
[WhiteElo "2708"]
[BlackElo "2645"]
[Result "0-1"]
[Round "08"]
[TimeControl "180+2"]
[Date "2023.02.07"]
[WhiteClock "0:00:03"]
[BlackClock "0:00:24"]

1. e4 {[%clk 0:03:00]}  c5 {[%clk 0:02:58]} 2. Nf3 {[%clk 0:02:58]}  Nc6 {[%clk 0:02:59]} 3. Bb5 {[%clk 0:02:57]}  g6 {[%clk 0:02:58]} 4. O-O {[%clk 0:02:57]}  Bg7 {[%clk 0:02:58]} 5. Re1 {[%clk 0:02:57]}  e5 {[%clk 0:02:56]} 6. Bxc6 {[%clk 0:02:57]}  dxc6 {[%clk 0:02:55]} 7. d3 {[%clk 0:02:56]}  Qe7 {[%clk 0:02:50]} 8. a4 {[%clk 0:02:50]}  Nf6 {[%clk 0:02:50]} 9. Bg5 {[%clk 0:02:39]}  h6 {[%clk 0:02:48]} 10. Be3 {[%clk 0:02:39]}  O-O {[%clk 0:02:46]} 11. Na3 {[%clk 0:02:32]}  Bg4 {[%clk 0:02:37]} 12. h3 {[%clk 0:02:31]}  Bxf3 {[%clk 0:02:37]} 13. Qxf3 {[%clk 0:02:32]}  Nd7 {[%clk 0:02:38]} 14. Nc4 {[%clk 0:02:28]}  Rfd8 {[%clk 0:02:36]} 15. g3 {[%clk 0:02:26]}  Nf8 {[%clk 0:02:36]} 16. Kg2 {[%clk 0:02:26]}  Ne6 {[%clk 0:02:36]} 17. Qe2 {[%clk 0:02:23]}  b5 {[%clk 0:02:34]} 18. Nd2 {[%clk 0:02:15]}  h5 {[%clk 0:02:06]} 19. axb5 {[%clk 0:02:10]}  cxb5 {[%clk 0:02:07]} 20. Ra5 {[%clk 0:02:10]}  Qb7 {[%clk 0:02:04]} 21. Rea1 {[%clk 0:02:05]}  a6 {[%clk 0:02:02]} 22. Nf3 {[%clk 0:01:41]}  Re8 {[%clk 0:01:38]} 23. Kg1 {[%clk 0:01:20]}  Nd4 {[%clk 0:01:35]} 24. Nxd4 {[%clk 0:00:40]}  exd4 {[%clk 0:01:36]} 25. Bf4 {[%clk 0:00:25]}  Re6 {[%clk 0:01:36]} 26. Qf3 {[%clk 0:00:20]}  Rae8 {[%clk 0:01:36]} 27. Kg2 {[%clk 0:00:19]}  c4 {[%clk 0:01:31]} 28. b3 {[%clk 0:00:17]}  cxd3 {[%clk 0:01:25]} 29. cxd3 {[%clk 0:00:17]}  Rc8 {[%clk 0:01:25]} 30. e5 {[%clk 0:00:08]}  Qxf3+ {[%clk 0:00:43]} 31. Kxf3 {[%clk 0:00:09]}  Rcc6 {[%clk 0:00:43]} 32. Ke4 {[%clk 0:00:08]}  g5 {[%clk 0:00:41]} 33. Bxg5 {[%clk 0:00:03]}  Rxe5+ {[%clk 0:00:42]} 34. Kf4 {[%clk 0:00:04]}  Rcc5 {[%clk 0:00:27]} 35. Bh4 {[%clk 0:00:04]}  Rf5+ {[%clk 0:00:26]} 36. Ke4 {[%clk 0:00:04]}  Rce5+ {[%clk 0:00:26]} 37. Kxd4 {[%clk 0:00:04]}  Re6+ {[%clk 0:00:24]} 38. Bf6 {[%clk 0:00:03]}  Bxf6# {[%clk 0:00:24]} 0-1


[Site "https://www.chess.com"]

[Event "Titled Tuesday Blitz February 07 Late 2023"]
[White "Deac, Bogdan-Daniel"]
[Black "Zhigalko, Sergei"]
[WhiteFideId "1226380"]
[BlackFideId "13502956"]
[WhiteElo "2700"]
[BlackElo "2572"]
[Result "0-1"]
[Round "08"]
[TimeControl "180+2"]
[Date "2023.02.07"]
[WhiteClock "0:00:05"]
[BlackClock "0:00:07"]

1. d4 {[%clk 0:03:00]}  Nf6 {[%clk 0:02:59]} 2. Nf3 {[%clk 0:02:58]}  e6 {[%clk 0:02:58]} 3. c4 {[%clk 0:02:57]}  b6 {[%clk 0:02:58]} 4. a3 {[%clk 0:02:56]}  Ba6 {[%clk 0:02:58]} 5. Qc2 {[%clk 0:02:56]}  Bb7 {[%clk 0:02:58]} 6. Nc3 {[%clk 0:02:56]}  c5 {[%clk 0:02:59]} 7. e4 {[%clk 0:02:57]}  cxd4 {[%clk 0:03:00]} 8. Nxd4 {[%clk 0:02:58]}  Nc6 {[%clk 0:03:00]} 9. Nf3 {[%clk 0:02:55]}  Qc7 {[%clk 0:02:54]} 10. h3 {[%clk 0:02:49]}  a6 {[%clk 0:02:45]} 11. Bd3 {[%clk 0:02:37]}  Bd6 {[%clk 0:02:39]} 12. O-O {[%clk 0:02:19]}  Rc8 {[%clk 0:02:36]} 13. Be3 {[%clk 0:02:17]}  Ne5 {[%clk 0:02:22]} 14. Nxe5 {[%clk 0:02:16]}  Bxe5 {[%clk 0:02:23]} 15. Rac1 {[%clk 0:02:16]}  Qc6 {[%clk 0:01:55]} 16. f3 {[%clk 0:02:10]}  O-O {[%clk 0:01:49]} 17. Qf2 {[%clk 0:02:05]}  Nh5 {[%clk 0:01:27]} 18. Qh4 {[%clk 0:01:05]}  Ng3 {[%clk 0:01:12]} 19. Rfe1 {[%clk 0:01:02]}  f5 {[%clk 0:01:09]} 20. Bf2 {[%clk 0:00:33]}  f4 {[%clk 0:01:06]} 21. b4 {[%clk 0:00:31]}  Qd6 {[%clk 0:00:47]} 22. Red1 {[%clk 0:00:19]}  Bf6 {[%clk 0:00:39]} 23. Qg4 {[%clk 0:00:13]}  h5 {[%clk 0:00:14]} 24. Qg6 {[%clk 0:00:13]}  Bxc3 {[%clk 0:00:09]} 25. Rxc3 {[%clk 0:00:08]}  Qe5 {[%clk 0:00:10]} 26. Bxg3 {[%clk 0:00:04]}  fxg3 {[%clk 0:00:07]} 27. Rc2 {[%clk 0:00:03]}  Rf6 {[%clk 0:00:08]} 28. Qxf6 {[%clk 0:00:03]}  Qxf6 {[%clk 0:00:07]} 29. Bf1 {[%clk 0:00:04]}  Bc6 {[%clk 0:00:07]} 30. Rcd2 {[%clk 0:00:04]}  Ba4 {[%clk 0:00:07]} 31. Re1 {[%clk 0:00:05]}  Qc3 {[%clk 0:00:07]} 32. Be2 {[%clk 0:00:05]}  Qxd2 {[%clk 0:00:07]} 0-1


[Site "https://www.chess.com"]

[Event "Titled Tuesday Blitz February 07 Late 2023"]
[White "EREBUNI91"]
[Black "Dardha, Daniel"]
[BlackFideId "240990"]
[WhiteElo "2759"]
[BlackElo "2631"]
[Result "1-0"]
[Round "08"]
[TimeControl "180+2"]
[Date "2023.02.07"]
[WhiteClock "0:01:10"]
[BlackClock "0:02:07"]

1. e4 {[%clk 0:03:00]}  c6 {[%clk 0:02:59]} 2. d4 {[%clk 0:03:00]}  d5 {[%clk 0:02:59]} 3. e5 {[%clk 0:02:58]}  Bf5 {[%clk 0:02:59]} 4. h4 {[%clk 0:02:55]}  h5 {[%clk 0:02:57]} 5. Bd3 {[%clk 0:02:52]}  Bxd3 {[%clk 0:02:57]} 6. Qxd3 {[%clk 0:02:53]}  Qa5+ {[%clk 0:02:57]} 7. Nd2 {[%clk 0:02:51]}  e6 {[%clk 0:02:56]} 8. Nf3 {[%clk 0:02:49]}  c5 {[%clk 0:02:56]} 9. O-O {[%clk 0:02:29]}  Nc6 {[%clk 0:02:54]} 10. Nb3 {[%clk 0:02:20]}  Qb6 {[%clk 0:02:55]} 11. dxc5 {[%clk 0:02:16]}  Bxc5 {[%clk 0:02:56]} 12. Nxc5 {[%clk 0:02:17]}  Qxc5 {[%clk 0:02:56]} 13. Be3 {[%clk 0:02:17]}  Qe7 {[%clk 0:02:54]} 14. c4 {[%clk 0:02:10]}  Rd8 {[%clk 0:02:52]} 15. Rfd1 {[%clk 0:01:57]}  dxc4 {[%clk 0:02:41]} 16. Qxc4 {[%clk 0:01:58]}  Nh6 {[%clk 0:02:39]} 17. Bg5 {[%clk 0:01:50]}  Rxd1+ {[%clk 0:02:37]} 18. Rxd1 {[%clk 0:01:50]}  Qc7 {[%clk 0:02:33]} 19. Rd8+ {[%clk 0:01:40]}  Qxd8 {[%clk 0:02:33]} 20. Bxd8 {[%clk 0:01:39]}  Kxd8 {[%clk 0:02:33]} 21. b4 {[%clk 0:01:37]}  Nf5 {[%clk 0:02:29]} 22. b5 {[%clk 0:01:34]}  Nce7 {[%clk 0:02:26]} 23. Ng5 {[%clk 0:01:32]}  Rf8 {[%clk 0:02:25]} 24. Qc5 {[%clk 0:01:29]}  b6 {[%clk 0:02:24]} 25. Qa3 {[%clk 0:01:28]}  Nxh4 {[%clk 0:02:17]} 26. Qxa7 {[%clk 0:01:25]}  Nhg6 {[%clk 0:02:13]} 27. Qxb6+ {[%clk 0:01:23]}  Kd7 {[%clk 0:02:14]} 28. Qd6+ {[%clk 0:01:21]}  Kc8 {[%clk 0:02:13]} 29. b6 {[%clk 0:01:20]}  Nd5 {[%clk 0:02:11]} 30. Ne4 {[%clk 0:01:14]}  Rd8 {[%clk 0:02:06]} 31. Qc6+ {[%clk 0:01:13]}  Kb8 {[%clk 0:02:07]} 32. Nc5 {[%clk 0:01:10]} 1-0


[Site "https://www.chess.com"]

[Event "Titled Tuesday Blitz February 07 Late 2023"]
[White "Baskakov, Egor"]
[Black "Perske, Thore"]
[WhiteFideId "24197866"]
[BlackFideId "12902195"]
[WhiteElo "2215"]
[BlackElo "2448"]
[Result "1-0"]
[Round "08"]
[TimeControl "180+2"]
[Date "2023.02.07"]
[WhiteClock "0:01:17"]
[BlackClock "0:00:13"]

1. e4 {[%clk 0:03:00]}  e6 {[%clk 0:02:59]} 2. Nc3 {[%clk 0:03:01]}  d5 {[%clk 0:02:59]} 3. g3 {[%clk 0:03:01]}  Nf6 {[%clk 0:02:57]} 4. Bg2 {[%clk 0:02:59]}  Be7 {[%clk 0:02:56]} 5. Nge2 {[%clk 0:02:59]}  O-O {[%clk 0:02:51]} 6. d4 {[%clk 0:02:58]}  b6 {[%clk 0:02:34]} 7. O-O {[%clk 0:02:56]}  Bb7 {[%clk 0:02:25]} 8. e5 {[%clk 0:02:56]}  Nfd7 {[%clk 0:02:25]} 9. f4 {[%clk 0:02:56]}  c5 {[%clk 0:02:19]} 10. Be3 {[%clk 0:02:56]}  Nc6 {[%clk 0:02:17]} 11. Qd2 {[%clk 0:02:54]}  f5 {[%clk 0:02:14]} 12. exf6 {[%clk 0:02:33]}  Nxf6 {[%clk 0:02:07]} 13. Kh1 {[%clk 0:02:33]}  Ng4 {[%clk 0:01:29]} 14. Bg1 {[%clk 0:02:32]}  Qd7 {[%clk 0:01:03]} 15. Rae1 {[%clk 0:02:31]}  Rae8 {[%clk 0:01:02]} 16. f5 {[%clk 0:02:13]}  exf5 {[%clk 0:00:34]} 17. dxc5 {[%clk 0:01:49]}  Bxc5 {[%clk 0:00:32]} 18. Bxc5 {[%clk 0:01:45]}  bxc5 {[%clk 0:00:33]} 19. Qxd5+ {[%clk 0:01:41]}  Qxd5 {[%clk 0:00:34]} 20. Nxd5 {[%clk 0:01:42]}  Nce5 {[%clk 0:00:27]} 21. b3 {[%clk 0:01:32]}  g6 {[%clk 0:00:24]} 22. Nef4 {[%clk 0:01:28]}  Kg7 {[%clk 0:00:21]} 23. Nc7 {[%clk 0:01:18]}  Bxg2+ {[%clk 0:00:20]} 24. Kxg2 {[%clk 0:01:19]}  Re7 {[%clk 0:00:13]} 25. Nce6+ {[%clk 0:01:17]}  Rxe6 {[%clk 0:00:13]} 26. Nxe6+ {[%clk 0:01:17]}  Kf6 {[%clk 0:00:13]} 27. Nxf8 {[%clk 0:01:17]} 1-0


[Site "https://www.chess.com"]

[Event "Titled Tuesday Blitz February 07 Late 2023"]
[White "Tan, Zhongyi"]
[Black "Pichot, Alan"]
[WhiteFideId "8603642"]
[BlackFideId "110973"]
[WhiteElo "2517"]
[BlackElo "2638"]
[Result "0-1"]
[Round "08"]
[TimeControl "180+2"]
[Date "2023.02.07"]
[WhiteClock "0:00:03"]
[BlackClock "0:00:19"]

1. d4 {[%clk 0:03:00]}  d5 {[%clk 0:02:53]} 2. c4 {[%clk 0:03:00]}  e6 {[%clk 0:02:52]} 3. Nf3 {[%clk 0:03:00]}  c6 {[%clk 0:02:53]} 4. Nc3 {[%clk 0:02:59]}  dxc4 {[%clk 0:02:51]} 5. a4 {[%clk 0:02:59]}  Nf6 {[%clk 0:02:49]} 6. e3 {[%clk 0:02:59]}  Nbd7 {[%clk 0:02:41]} 7. Bxc4 {[%clk 0:02:58]}  Bd6 {[%clk 0:02:41]} 8. O-O {[%clk 0:02:57]}  O-O {[%clk 0:02:41]} 9. h3 {[%clk 0:02:55]}  e5 {[%clk 0:02:41]} 10. Ba2 {[%clk 0:02:48]}  a5 {[%clk 0:02:32]} 11. Qc2 {[%clk 0:02:42]}  Qe7 {[%clk 0:02:30]} 12. Re1 {[%clk 0:02:36]}  e4 {[%clk 0:02:28]} 13. Ng5 {[%clk 0:02:33]}  Bb4 {[%clk 0:02:27]} 14. Rd1 {[%clk 0:02:18]}  Bxc3 {[%clk 0:02:24]} 15. bxc3 {[%clk 0:02:19]}  h6 {[%clk 0:02:21]} 16. Ba3 {[%clk 0:02:19]}  c5 {[%clk 0:02:21]} 17. Nxf7 {[%clk 0:01:58]}  Rxf7 {[%clk 0:02:21]} 18. dxc5 {[%clk 0:01:58]}  Ne5 {[%clk 0:02:11]} 19. c6 {[%clk 0:01:56]}  Qe8 {[%clk 0:02:11]} 20. Bxf7+ {[%clk 0:01:48]}  Qxf7 {[%clk 0:02:05]} 21. Rd8+ {[%clk 0:01:45]}  Kh7 {[%clk 0:02:05]} 22. Rf8 {[%clk 0:01:38]}  Qg6 {[%clk 0:02:03]} 23. f4 {[%clk 0:00:47]}  exf3 {[%clk 0:01:53]} 24. Qxg6+ {[%clk 0:00:44]}  Nxg6 {[%clk 0:01:54]} 25. cxb7 {[%clk 0:00:43]}  Bxb7 {[%clk 0:01:55]} 26. Rxa8 {[%clk 0:00:43]}  Bxa8 {[%clk 0:01:56]} 27. gxf3 {[%clk 0:00:42]}  Bxf3 {[%clk 0:01:55]} 28. Rb1 {[%clk 0:00:39]}  Nd5 {[%clk 0:01:55]} 29. Rb5 {[%clk 0:00:38]}  Nxc3 {[%clk 0:01:55]} 30. Rxa5 {[%clk 0:00:38]}  Bd1 {[%clk 0:01:55]} 31. Bb2 {[%clk 0:00:23]}  Nxa4 {[%clk 0:01:54]} 32. Bd4 {[%clk 0:00:23]}  Nh4 {[%clk 0:01:55]} 33. Kf2 {[%clk 0:00:20]}  Bc2 {[%clk 0:01:50]} 34. Ra7 {[%clk 0:00:19]}  Nf5 {[%clk 0:01:50]} 35. Ba1 {[%clk 0:00:17]}  Nc5 {[%clk 0:01:50]} 36. Rc7 {[%clk 0:00:16]}  Ne4+ {[%clk 0:01:44]} 37. Ke2 {[%clk 0:00:16]}  Ba4 {[%clk 0:01:40]} 38. Kf3 {[%clk 0:00:15]}  Ng5+ {[%clk 0:00:50]} 39. Ke2 {[%clk 0:00:14]}  Bb5+ {[%clk 0:00:46]} 40. Kd2 {[%clk 0:00:15]}  Ne6 {[%clk 0:00:46]} 41. Rb7 {[%clk 0:00:13]}  Nd6 {[%clk 0:00:42]} 42. Ra7 {[%clk 0:00:12]}  Ne4+ {[%clk 0:00:41]} 43. Ke1 {[%clk 0:00:12]}  Kg6 {[%clk 0:00:39]} 44. Be5 {[%clk 0:00:11]}  N4g5 {[%clk 0:00:34]} 45. Ra5 {[%clk 0:00:06]}  Nf3+ {[%clk 0:00:32]} 46. Kd1 {[%clk 0:00:05]}  Nxe5 {[%clk 0:00:33]} 47. Rxb5 {[%clk 0:00:05]}  Kf6 {[%clk 0:00:34]} 48. Ke2 {[%clk 0:00:05]}  Ng5 {[%clk 0:00:34]} 49. h4 {[%clk 0:00:05]}  Ne4 {[%clk 0:00:35]} 50. Rb6+ {[%clk 0:00:05]}  Kf5 {[%clk 0:00:35]} 51. Rb7 {[%clk 0:00:05]}  g6 {[%clk 0:00:33]} 52. Rb6 {[%clk 0:00:05]}  h5 {[%clk 0:00:33]} 53. Rb8 {[%clk 0:00:04]}  Kg4 {[%clk 0:00:31]} 54. Re8 {[%clk 0:00:04]}  Ng3+ {[%clk 0:00:31]} 55. Kf2 {[%clk 0:00:04]}  Nf3 {[%clk 0:00:29]} 56. Rf8 {[%clk 0:00:03]}  Ne4+ {[%clk 0:00:29]} 57. Ke2 {[%clk 0:00:02]}  Ng1+ {[%clk 0:00:25]} 58. Kf1 {[%clk 0:00:03]}  Nh3 {[%clk 0:00:24]} 59. Re8 {[%clk 0:00:02]}  Nhf2 {[%clk 0:00:18]} 60. Re6 {[%clk 0:00:02]}  Kf5 {[%clk 0:00:18]} 61. Re8 {[%clk 0:00:02]}  Ng4 {[%clk 0:00:18]} 62. Rf8+ {[%clk 0:00:02]}  Nef6 {[%clk 0:00:18]} 63. Ke2 {[%clk 0:00:03]}  Ke4 {[%clk 0:00:19]} 64. Re8+ {[%clk 0:00:03]}  Nxe8 {[%clk 0:00:19]} 0-1


[Site "https://www.chess.com"]

[Event "Titled Tuesday Blitz February 07 Late 2023"]
[White "Preotu, Razvan"]
[Black "Borges Feria, Yasel"]
[WhiteFideId "2613280"]
[BlackFideId "3504921"]
[WhiteElo "2475"]
[BlackElo "2439"]
[Result "1/2-1/2"]
[Round "08"]
[TimeControl "180+2"]
[Date "2023.02.07"]
[WhiteClock "0:00:03"]
[BlackClock "0:00:12"]

1. e4 {[%clk 0:03:00]}  e5 {[%clk 0:02:58]} 2. Nf3 {[%clk 0:03:01]}  Nc6 {[%clk 0:02:55]} 3. Bc4 {[%clk 0:03:01]}  Bc5 {[%clk 0:02:54]} 4. c3 {[%clk 0:03:01]}  Nf6 {[%clk 0:02:50]} 5. d3 {[%clk 0:03:01]}  a5 {[%clk 0:02:49]} 6. O-O {[%clk 0:03:01]}  d6 {[%clk 0:02:47]} 7. Re1 {[%clk 0:03:00]}  h6 {[%clk 0:02:47]} 8. Nbd2 {[%clk 0:03:00]}  O-O {[%clk 0:02:44]} 9. Nf1 {[%clk 0:02:58]}  a4 {[%clk 0:02:42]} 10. Bb5 {[%clk 0:02:53]}  a3 {[%clk 0:02:34]} 11. b4 {[%clk 0:02:53]}  Bb6 {[%clk 0:02:33]} 12. Ne3 {[%clk 0:02:40]}  Ng4 {[%clk 0:02:18]} 13. Bc4 {[%clk 0:02:01]}  Nxe3 {[%clk 0:02:12]} 14. Bxe3 {[%clk 0:02:02]}  Bxe3 {[%clk 0:02:12]} 15. Rxe3 {[%clk 0:01:59]}  Be6 {[%clk 0:02:07]} 16. Bxe6 {[%clk 0:01:34]}  fxe6 {[%clk 0:02:08]} 17. Qb3 {[%clk 0:01:31]}  Qd7 {[%clk 0:02:06]} 18. Rd1 {[%clk 0:01:04]}  g5 {[%clk 0:01:42]} 19. h3 {[%clk 0:00:55]}  Qf7 {[%clk 0:01:34]} 20. b5 {[%clk 0:00:48]}  Ne7 {[%clk 0:01:29]} 21. d4 {[%clk 0:00:48]}  exd4 {[%clk 0:01:25]} 22. cxd4 {[%clk 0:00:49]}  Ng6 {[%clk 0:01:25]} 23. g3 {[%clk 0:00:47]}  e5 {[%clk 0:01:22]} 24. Qxf7+ {[%clk 0:00:37]}  Rxf7 {[%clk 0:01:20]} 25. dxe5 {[%clk 0:00:38]}  Nxe5 {[%clk 0:01:16]} 26. Nxe5 {[%clk 0:00:38]}  dxe5 {[%clk 0:01:17]} 27. Rd5 {[%clk 0:00:38]}  Re7 {[%clk 0:01:13]} 28. Rdd3 {[%clk 0:00:08]}  Ra5 {[%clk 0:01:03]} 29. b6 {[%clk 0:00:08]}  cxb6 {[%clk 0:00:48]} 30. Rxa3 {[%clk 0:00:08]}  Rxa3 {[%clk 0:00:49]} 31. Rxa3 {[%clk 0:00:08]}  Kf7 {[%clk 0:00:50]} 32. Rb3 {[%clk 0:00:08]}  Re6 {[%clk 0:00:44]} 33. Kg2 {[%clk 0:00:08]}  Kf6 {[%clk 0:00:45]} 34. Kf3 {[%clk 0:00:08]}  h5 {[%clk 0:00:42]} 35. Ke3 {[%clk 0:00:06]}  Rc6 {[%clk 0:00:42]} 36. a4 {[%clk 0:00:04]}  Ke6 {[%clk 0:00:36]} 37. Kf3 {[%clk 0:00:03]}  Kf6 {[%clk 0:00:36]} 38. Rb5 {[%clk 0:00:03]}  Ke6 {[%clk 0:00:33]} 39. h4 {[%clk 0:00:02]}  g4+ {[%clk 0:00:30]} 40. Ke3 {[%clk 0:00:03]}  Kf6 {[%clk 0:00:31]} 41. Rd5 {[%clk 0:00:01]}  Rc3+ {[%clk 0:00:27]} 42. Ke2 {[%clk 0:00:01]}  Rc4 {[%clk 0:00:24]} 43. Rd6+ {[%clk 0:00:02]}  Kf7 {[%clk 0:00:21]} 44. Rxb6 {[%clk 0:00:03]}  Rxe4+ {[%clk 0:00:21]} 45. Kf1 {[%clk 0:00:03]}  Rxa4 {[%clk 0:00:22]} 46. Rxb7+ {[%clk 0:00:03]}  Kg6 {[%clk 0:00:22]} 47. Rb6+ {[%clk 0:00:04]}  Kg7 {[%clk 0:00:22]} 48. Re6 {[%clk 0:00:04]}  Ra5 {[%clk 0:00:20]} 49. Ke1 {[%clk 0:00:04]}  Kf7 {[%clk 0:00:17]} 50. Rh6 {[%clk 0:00:04]}  e4 {[%clk 0:00:17]} 51. Ke2 {[%clk 0:00:05]}  Rf5 {[%clk 0:00:15]} 52. Ke3 {[%clk 0:00:03]}  Kg7 {[%clk 0:00:15]} 53. Re6 {[%clk 0:00:03]}  Rf3+ {[%clk 0:00:14]} 54. Ke2 {[%clk 0:00:03]}  Rf5 {[%clk 0:00:12]} 55. Rxe4 {[%clk 0:00:04]}  Ra5 {[%clk 0:00:12]} 56. Ke3 {[%clk 0:00:04]}  Kf6 {[%clk 0:00:13]} 57. Rd4 {[%clk 0:00:03]}  Ra3+ {[%clk 0:00:13]} 58. Ke4 {[%clk 0:00:03]}  Ra6 {[%clk 0:00:09]} 59. Kf4 {[%clk 0:00:02]}  Kg6 {[%clk 0:00:09]} 60. Ke5 {[%clk 0:00:02]}  Rf6 {[%clk 0:00:09]} 61. Rd6 {[%clk 0:00:02]}  Rxd6 {[%clk 0:00:09]} 62. Kxd6 {[%clk 0:00:03]}  Kf5 {[%clk 0:00:09]} 63. Kd5 {[%clk 0:00:03]}  Kf6 {[%clk 0:00:10]} 64. Ke4 {[%clk 0:00:04]}  Ke6 {[%clk 0:00:10]} 65. Kf4 {[%clk 0:00:03]}  Kf6 {[%clk 0:00:10]} 66. f3 {[%clk 0:00:02]}  gxf3 {[%clk 0:00:11]} 67. Kxf3 {[%clk 0:00:03]}  Kf5 {[%clk 0:00:12]} 68. Ke3 {[%clk 0:00:03]}  Ke5 {[%clk 0:00:12]} 69. Kd3 {[%clk 0:00:03]}  Kd5 {[%clk 0:00:12]} 70. Ke2 {[%clk 0:00:02]}  Ke6 {[%clk 0:00:11]} 71. Kf2 {[%clk 0:00:02]}  Kf6 {[%clk 0:00:11]} 72. Kg2 {[%clk 0:00:02]}  Kg6 {[%clk 0:00:11]} 73. Kh2 {[%clk 0:00:02]}  Kf5 {[%clk 0:00:11]} 74. Kg2 {[%clk 0:00:02]}  Kg6 {[%clk 0:00:10]} 75. Kf2 {[%clk 0:00:02]}  Kf6 {[%clk 0:00:11]} 76. Ke3 {[%clk 0:00:02]}  Ke5 {[%clk 0:00:11]} 77. Kd3 {[%clk 0:00:02]}  Kd5 {[%clk 0:00:12]} 78. Ke3 {[%clk 0:00:03]}  Ke5 {[%clk 0:00:12]} 1/2-1/2


[Site "https://www.chess.com"]

[Event "Titled Tuesday Blitz February 07 Late 2023"]
[White "Kosakowski, Jakub"]
[Black "Godzwon, Iwo"]
[WhiteFideId "1185080"]
[BlackFideId "21802483"]
[WhiteElo "2485"]
[BlackElo "2394"]
[Result "1-0"]
[Round "08"]
[TimeControl "180+2"]
[Date "2023.02.07"]
[WhiteClock "0:00:15"]
[BlackClock "0:00:07"]

1. Nf3 {[%clk 0:02:57]}  c5 {[%clk 0:02:59]} 2. e4 {[%clk 0:02:56]}  e6 {[%clk 0:02:55]} 3. d4 {[%clk 0:02:56]}  cxd4 {[%clk 0:02:56]} 4. Nxd4 {[%clk 0:02:56]}  Nc6 {[%clk 0:02:56]} 5. Nc3 {[%clk 0:02:56]}  Qc7 {[%clk 0:02:56]} 6. Be3 {[%clk 0:02:52]}  Nf6 {[%clk 0:02:40]} 7. f4 {[%clk 0:02:50]}  Bb4 {[%clk 0:02:40]} 8. Nb5 {[%clk 0:02:50]}  Qa5 {[%clk 0:02:31]} 9. e5 {[%clk 0:02:49]}  Nd5 {[%clk 0:02:31]} 10. Bd2 {[%clk 0:02:46]}  Nxc3 {[%clk 0:02:24]} 11. Bxc3 {[%clk 0:02:46]}  Bxc3+ {[%clk 0:02:22]} 12. bxc3 {[%clk 0:02:30]}  O-O {[%clk 0:02:21]} 13. Qd2 {[%clk 0:02:12]}  f6 {[%clk 0:02:20]} 14. exf6 {[%clk 0:02:10]}  Rxf6 {[%clk 0:02:20]} 15. Nd6 {[%clk 0:02:04]}  Ne7 {[%clk 0:01:25]} 16. g3 {[%clk 0:01:55]}  Nf5 {[%clk 0:01:17]} 17. Ne4 {[%clk 0:01:48]}  Rf8 {[%clk 0:01:17]} 18. Bd3 {[%clk 0:01:44]}  d5 {[%clk 0:01:17]} 19. Ng5 {[%clk 0:01:43]}  h6 {[%clk 0:01:13]} 20. Nf3 {[%clk 0:01:42]}  Bd7 {[%clk 0:00:58]} 21. Ne5 {[%clk 0:01:42]}  Be8 {[%clk 0:00:59]} 22. O-O {[%clk 0:01:34]}  Rc8 {[%clk 0:00:54]} 23. Rab1 {[%clk 0:01:32]}  b6 {[%clk 0:00:54]} 24. Qe2 {[%clk 0:00:45]}  Qxc3 {[%clk 0:00:42]} 25. Nf3 {[%clk 0:00:37]}  Nd4 {[%clk 0:00:39]} 26. Nxd4 {[%clk 0:00:30]}  Qxd4+ {[%clk 0:00:40]} 27. Kg2 {[%clk 0:00:30]}  Bf7 {[%clk 0:00:35]} 28. Rbe1 {[%clk 0:00:29]}  Rfe8 {[%clk 0:00:36]} 29. Qg4 {[%clk 0:00:26]}  Qf6 {[%clk 0:00:35]} 30. Re5 {[%clk 0:00:26]}  Rc3 {[%clk 0:00:32]} 31. Rfe1 {[%clk 0:00:26]}  Rec8 {[%clk 0:00:25]} 32. R1e2 {[%clk 0:00:26]}  R3c6 {[%clk 0:00:12]} 33. h4 {[%clk 0:00:22]}  Rd8 {[%clk 0:00:11]} 34. h5 {[%clk 0:00:21]}  Rdd6 {[%clk 0:00:10]} 35. f5 {[%clk 0:00:21]}  Qe7 {[%clk 0:00:09]} 36. Rf2 {[%clk 0:00:18]}  Qg5 {[%clk 0:00:09]} 37. fxe6 {[%clk 0:00:16]}  Rxe6 {[%clk 0:00:07]} 38. Rxg5 {[%clk 0:00:15]} 1-0


[Site "https://www.chess.com"]

[Event "Titled Tuesday Blitz February 07 Late 2023"]
[White "Zierk, Steven"]
[Black "Adewumi, Tanitoluwa"]
[WhiteFideId "2034255"]
[BlackFideId "30966396"]
[WhiteElo "2488"]
[BlackElo "2283"]
[Result "1-0"]
[Round "08"]
[TimeControl "180+2"]
[Date "2023.02.07"]
[WhiteClock "0:02:14"]
[BlackClock "0:00:20"]

1. e4 {[%clk 0:03:00]}  c5 {[%clk 0:02:59]} 2. Nf3 {[%clk 0:03:01]}  e6 {[%clk 0:02:58]} 3. d4 {[%clk 0:03:01]}  cxd4 {[%clk 0:02:56]} 4. Nxd4 {[%clk 0:03:02]}  Nc6 {[%clk 0:02:56]} 5. Nc3 {[%clk 0:03:02]}  Qc7 {[%clk 0:02:57]} 6. Be3 {[%clk 0:03:01]}  a6 {[%clk 0:02:56]} 7. Qd2 {[%clk 0:03:01]}  Nf6 {[%clk 0:02:49]} 8. f3 {[%clk 0:02:59]}  d6 {[%clk 0:02:38]} 9. g4 {[%clk 0:02:51]}  Bd7 {[%clk 0:02:32]} 10. g5 {[%clk 0:02:49]}  Nh5 {[%clk 0:02:23]} 11. f4 {[%clk 0:02:47]}  Nxd4 {[%clk 0:02:00]} 12. Bxd4 {[%clk 0:02:43]}  Be7 {[%clk 0:01:48]} 13. Be2 {[%clk 0:02:37]}  Nxf4 {[%clk 0:01:30]} 14. Qxf4 {[%clk 0:02:38]}  e5 {[%clk 0:01:30]} 15. Nd5 {[%clk 0:02:36]}  Qa5+ {[%clk 0:01:19]} 16. Qd2 {[%clk 0:02:27]}  Qxd2+ {[%clk 0:01:18]} 17. Kxd2 {[%clk 0:02:28]}  exd4 {[%clk 0:01:18]} 18. Nc7+ {[%clk 0:02:28]}  Kf8 {[%clk 0:00:50]} 19. Nxa8 {[%clk 0:02:29]}  Bd8 {[%clk 0:00:50]} 20. a4 {[%clk 0:02:23]}  Ba5+ {[%clk 0:00:45]} 21. b4 {[%clk 0:02:19]}  Bxb4+ {[%clk 0:00:45]} 22. Kd3 {[%clk 0:02:19]}  Ba5 {[%clk 0:00:40]} 23. Rhb1 {[%clk 0:02:19]}  Ke7 {[%clk 0:00:27]} 24. Nb6 {[%clk 0:02:18]}  Bc6 {[%clk 0:00:25]} 25. Kxd4 {[%clk 0:02:15]}  Re8 {[%clk 0:00:21]} 26. Bc4 {[%clk 0:02:13]}  Kf8 {[%clk 0:00:20]} 27. Bd5 {[%clk 0:02:14]} 1-0


[Site "https://www.chess.com"]